Cogmind - Beta 13 @@@ ROGUE MODE // 2024.04.26 @ 11:10:01 Player: mewcatx Result: Destroyed by D-53 Grenadier with Mini Grenade Launcher Performance ------------- Evolutions (0) 0 Regions Visited (2) 400 Robots Destroyed (19) 95 Value Destroyed (398) 398 Prototype IDs (0) 0 Alien Tech Used (0) 0 Bonus (0) 0 TOTAL SCORE: 893 Bonus ------- None Cogmind --------- Core Integrity 0/250 Matter 257/300 Energy 91/100 System Corruption 0% Temperature Cool (0) Movement Core (50) Location -10/Mines Parts ------- > --- POWER (1) -------- (None) > --- PROPULSION (2) --- (None) > --- UTILITY (2) ------ (None) > --- WEAPON (2) ------- (None) > --- INVENTORY (5) ---- Hover Unit Hover Unit Improved Heat Sink Medium Storage Unit Heavy Explosive Trap Peak State ------------ > --- POWER ------------ Light Ion Engine > --- PROPULSION ------- Light Treads Light Treads > --- UTILITY ---------- High-capacity Storage Unit Signal Interpreter > --- WEAPON ----------- Medium Laser Assault Rifle > --- INVENTORY -------- Ion Engine Light Nuclear Core Wheel Wheel Hover Unit Hover Unit Hover Unit Hover Unit Improved Heat Sink Small Storage Unit Medium Storage Unit Assault Rifle Grenade Launcher Grenade Launcher Grenade Launcher Grenade Launcher [Rating: 9] Favorites ----------- Power Light Ion Engine Engine Light Ion Engine Propulsion Light Treads Treads Light Treads Utility Signal Interpreter Storage Large Storage Unit Processor Signal Interpreter Weapon Medium Laser Energy Gun Medium Laser Ballistic Gun Assault Rifle Launcher Grenade Launcher Build | -11 -10 -10 ------- Run | Yrd Mat Min Slots Evolved . | . . . Power . | . . . Propulsion . | . . . Utility . | . . . Weapon . | . . . Parts Attached 23 | 6 13 4 Power 1 | 1 . . Engine 1 | 1 . . Core . | . . . Reactor . | . . . Propulsion 5 | 2 3 . Treads 5 | 2 3 . Leg . | . . . Wheel . | . . . Hover . | . . . Flight . | . . . Utility 4 | 1 3 . Device . | . . . Storage 3 | 1 2 . Processor 1 | . 1 . Hackware . | . . . Protection . | . . . Artifact . | . . . Weapon 13 | 2 7 4 Energy Gun 3 | 1 2 . Energy Cannon . | . . . Ballistic Gun 4 | 1 2 1 Ballistic Cannon . | . . . Launcher 6 | . 3 3 Special Weapon . | . . . Impact Weapon . | . . . Slashing Weapon . | . . . Piercing Weapon . | . . . Special Melee Weapon . | . . . Unidentified Prototypes . | . . . Parts Lost 7 | . . 7 Power 1 | . . 1 Propulsion 2 | . . 2 Utility . | . . . Weapon 4 | . . 4 Highest Loss Streak 7 | . . 7 To Critical Strikes . | . . . Average Slot Usage (%) 93 | . 93 98 Engine 13 | . 14 13 Treads 27 | . 27 26 Storage 14 | . 14 14 Processor 8 | . 8 14 Energy Gun 12 | . 13 1 Ballistic Gun 9 | . 9 13 Launcher 6 | . 5 13 Naked Turns 2 | . . 2 Heaviest Build 49 | 11 49 28 Greatest Support 40 | 40 40 40 Greatest Overweight (x) 1 | . 1 . Average Overweight (x) . | . . . Largest Inventory Capacity 20 | 8 20 15 Average Capacity 15 | 6 16 14 Most Carried 17 | 3 17 15 Average Carried 12 | 2 12 14 Final Capacity 15 | 8 15 5 Final Carried 15 | 3 15 5 Class Distribution -------------------- 100% | Mutant Dominant Class ---------------- Mutant | -10/Materials Mutant | -10/Mines Resources | -11 -10 -10 ----------- Run | Yrd Mat Min Matter Collected 615 | 228 178 209 Remotely . | . . . Salvage Created 331 | . 300 31 Parts 35 | . 27 8 Haulers Intercepted 1 | . 1 . Recyclers Shooed 2 | . 2 . Parts Field Recycled . | . . . Retrieved Matter . | . . . Parts Self-Destructed . | . . . Prevented . | . . . Kills | -11 -10 -10 ------- Run | Yrd Mat Min Combat Hostiles Destroyed 14 | . 10 4 Guns 3 | . 2 1 AOE 11 | . 8 3 Classes Destroyed 6 | . 5 1 Tunneler 1 | . . 1 Hauler 1 | . 1 . Mechanic 1 | . 1 . Watcher 2 | . 2 . Swarmer 7 | . 3 4 Grunt 7 | . 7 . Best Kill Streak 6 | . 6 3 Combat Bots Only 5 | . 5 3 Max Kills in Single Turn 3 | . 2 3 Gunslinging . | . . . Exploded 3 | . 1 3 Melee . | . . . Uniques/NPCs Destroyed . | . . . Combat | -11 -10 -10 -------- Run | Yrd Mat Min Hostile Shots Fired 73 | . 45 28 Missed 20 | . 18 2 Damage Taken 1112 | . 323 789 Core 258 | . 35 223 Absorbed by Shields . | . . . Regen/Repaired (Parts) 101 | . 101 . Core Remaining (%) 100 | 100 . . Volleys Fired 38 | . 29 9 Largest 2 | . 2 2 Hottest 80 | . 80 60 Shots Fired 64 | . 50 14 Gun 43 | . 35 8 Cannon . | . . . Launcher 21 | . 15 6 Special . | . . . Kinetic 17 | . 9 8 Thermal 26 | . 26 . Explosive 21 | . 15 6 Electromagnetic . | . . . Robot Hit Streak 5 | . 4 5 Robot Miss Streak 5 | . 5 3 Penetration Max . | . . . Secondary Targets . | . . . Shots Hit Robots 28 | . 20 8 Core Hits 28 | . 21 7 Critical Kills . | . . . Critical Parts Destroyed . | . . . Critical Strikes . | . . . Melee Attacks . | . . . Impact . | . . . Slashing . | . . . Piercing . | . . . Sneak Attacks . | . . . Combat Hostiles . | . . . Follow-up Attacks . | . . . Damage Inflicted 1279 | . 883 396 Guns 233 | . 182 51 Cannons . | . . . Explosions 1046 | . 701 345 Melee . | . . . Ramming . | . . . Kinetic 132 | . 81 51 Thermal 101 | . 101 . Explosive 1046 | . 701 345 Electromagnetic . | . . . Impact . | . . . Slashing . | . . . Piercing . | . . . Highest Corruption . | . . . Average Corruption . | . . . Corruption Purged . | . . . Corruption Blocked . | . . . Overload Shots . | . . . Overflow Damage 64 | . 24 40 Projectiles . | . . . Explosions 64 | . 24 40 Melee . | . . . Knockbacks . | . . . Impact . | . . . Kinetic . | . . . Secondary . | . . . Self-Inflicted Damage 127 | . 47 80 Shots 5 | . 3 2 Rammed . | . . . Targets Rammed . | . . . Kicked . | . . . Crushed . | . . . Highest Temperature 74 | . 74 . Average Temperature 23 | . 23 . Received Heat Transfer 113 | . 93 20 Siege Activations . | . . . Robots Corrupted . | . . . Combat Hostiles . | . . . Parts Fried . | . . . Impact Corruptions . | . . . Robots Melted . | . . . Combat Hostiles . | . . . Parts Melted . | . . . Heat Transferred 296 | . 296 . Parts Sabotaged . | . . . Parts Stolen . | . . . Parts Stripped . | . . . Power Chain Reactions . | . . . Alert | -11 -10 -10 ------- Run | Yrd Mat Min Peak Influence 211 | . 211 129 Initial 9 | . . 9 Average 54 | . 51 100 Maximum Alert Level 1 | . 1 . Low Security (%) 86 | 100 83 100 Level 1 13 | . 16 . Level 2 . | . . . Level 3 . | . . . Level 4 . | . . . Level 5 . | . . . High Security . | . . . Max Security . | . . . Squads Dispatched 2 | . 2 . Investigation . | . . . Extermination . | . . . Reinforcement 2 | . 2 . Assault . | . . . Garrison . | . . . Intercept . | . . . Searches Triggered . | . . . Construction Impeded . | . . . Haulers Reinforced . | . . . Active Scanning Responses . | . . . Cargo Convoy Interrupts . | . . . Stealth | -11 -10 -10 --------- Run | Yrd Mat Min Distress Signals 1 | . 1 . Communications Jammed . | . . . Distress Signals . | . . . Times Spotted 34 | . 23 11 Peak Tracking Total 8 | . 5 8 Tactical Retreats . | . . . Traps | -11 -10 -10 ------- Run | Yrd Mat Min Traps Triggered 2 | . 2 . Indirectly . | . . . Trap Hack Attempts . | . . . Triggered . | . . . Disarmed . | . . . Reprogrammed . | . . . Reused . | . . . Traps Extracted . | . . . Installed . | . . . Triggered . | . . . Most Traps Carried 2 | . . 2 Machines | -11 -10 -10 ---------- Run | Yrd Mat Min Machines Disabled 1 | . 1 . Max in Single Turn 1 | . 1 . Machines Repaired . | . . . Machines Dismantled . | . . . Machines Sabotaged . | . . . Overloaded Fab Kills . | . . . Hacking | -11 -10 -10 --------- Run | Yrd Mat Min Machines Accessed 6 | . 6 . Terminals 5 | . 5 . Fabricators . | . . . Repair Stations 1 | . 1 . Recycling Units . | . . . Scanalyzers . | . . . Garrison Access . | . . . Total Hacks 18 | . 18 . Successful 5 | . 5 . Failed 13 | . 13 . Catastrophic 3 | . 3 . Database Lockouts . | . . . Manual 13 | . 13 . Terminals 15 | . 15 . Fabricators . | . . . Repair Stations 3 | . 3 . Recycling Units . | . . . Scanalyzers . | . . . Garrison Access . | . . . Terminal Hacks 3 | . 3 . Unreport Threat 2 | . 2 . Locate Traps 1 | . 1 . Fabricator Hacks . | . . . Repair Station Hacks 2 | . 2 . Scan Component 1 | . 1 . Repair 1 | . 1 . Recycling Unit Hacks . | . . . Scanalyzer . | . . . Garrison Access Hacks . | . . . Unauthorized Hacks . | . . . Terminals . | . . . Fabricators . | . . . Repair Stations . | . . . Recycling Units . | . . . Scanalyzers . | . . . Garrison Access . | . . . Data Cores Recovered . | . . . Used . | . . . Hacking Detections 5 | . 5 . Full Trace Events . | . . . Feedback Events . | . . . Feedback Blocked . | . . . Robot Schematics Acquired . | . . . Robots Built . | . . . Authchips . | . . . Time . | . . . Total Robot Build Rating . | . . . Part Schematics Acquired . | . . . Parts Built . | . . . Authchips . | . . . Time . | . . . Total Part Build Rating . | . . . Parts Repaired 1 | . 1 . Time 26 | . 26 . Parts Recycled . | . . . Recycled Matter . | . . . Retrieved Matter . | . . . Retrieved Components . | . . . Parts Scanalyzed . | . . . Part Schematics Acquired . | . . . Parts Damaged . | . . . Bothacking | -11 -10 -10 ------------ Run | Yrd Mat Min Used RIF Installer . | . . . Robots Hacked . | . . . Non-combat . | . . . Combat . | . . . Robot Hacks Applied . | . . . Relay Couplers Released . | . . . Fabnet Peak Effective % . | . . . Robots Rewired . | . . . Allies Hacked . | . . . Hacks Repelled . | . . . Allies | -11 -10 -10 -------- Run | Yrd Mat Min Total Allies . | . . . Largest Group . | . . . Highest-Rated Group . | . . . Highest-Rated Ally . | . . . Total Orders . | . . . Ally Attacks . | . . . Total Damage . | . . . Kills . | . . . Allies Corrupted . | . . . Allies Melted . | . . . Intel | -11 -10 -10 ------- Run | Yrd Mat Min Robot Analysis Total . | . . . Derelict Logs Recovered . | . . . Drone Launches . | . . . Drone Recoveries . | . . . Exploration | -11 -10 -10 ------------- Run | Yrd Mat Min Turns Passed 1846 | 83 1542 221 Spaces Moved 911 | 47 751 113 Core 6 | 3 . 3 Treads 905 | 44 751 110 Legs . | . . . Wheels . | . . . Hover . | . . . Flight . | . . . Fastest Speed 50 | 50 160 50 Average Speed 180 | 152 185 157 Slowest Speed 240 | 160 240 160 Overloaded Moves . | . . . Propulsion Burnouts . | . . . Robots Hopped . | . . . Cave-ins Triggered . | . . . Exploration Rate (%) 43 | 5 89 35 Regions Visited 2 Branch Regions 1 Pre-discovered Areas . | . . . Known Exits Taken 1 | . 1 . Unknown Exits Taken 1 | 1 . . Scrap Searched . | . . . Spaces Dug 8 | . 8 . Terrain Destroyed 152 | . 106 46 Melee . | . . . Projectile . | . . . AOE 152 | . 106 46 Terrain Rammed . | . . . Walls Destroyed . | . . . Machines Disabled . | . . . Actions | -11 -10 -10 --------- Run | Yrd Mat Min Total 1043 | 55 845 143 Wait 38 | . 27 11 Move 909 | 46 750 113 Hop . | . . . Pick Up 24 | 3 18 3 Fast Attach 13 | 6 7 . Attach 3 | . . 3 Detach 1 | . 1 . Swap 7 | . 6 1 Drop 10 | . 7 3 Fire 38 | . 29 9 Melee . | . . . Ram . | . . . Kick . | . . . Crush . | . . . Escape Stasis . | . . . Rewire . | . . . Trap . | . . . Miscellaneous . | . . . Route ------- -11/Scrapyard -10/Materials (discovered 4 exits: *Mat x3 / *Min) -10/Mines (discovered 1 exit: *Mat) History --------- Turn | Location | Event 2 | -11/Scrapyard | Discovered new exit (range 16) 84 | -11/Scrapyard | Entered Materials 302 | -10/Materials | Build established: Mutant 722 | -10/Materials | Discovered new exit (range 7) 750 | -10/Materials | Identified exit to Materials 886 | -10/Materials | Discovered new exit (range 16) 915 | -10/Materials | Identified exit to Mines 1084 | -10/Materials | Discovered exit to Materials (range 16) 1303 | -10/Materials | Discovered exit to Materials (range 8) 1586 | -10/Materials | Repaired Lgt. Treads 1626 | -10/Materials | Entered Mines 1676 | -10/Mines | Met a Derelict bent on vengeance 1699 | -10/Mines | Found a hidden stash of uninstalled traps 1755 | -10/Mines | Discovered exit to Materials (range 7) 1828 | -10/Mines | Assembled infested the area 1842 | -10/Mines | Core integrity fell below 50% 1845 | -10/Mines | Released all parts (3) 1846 | -10/Mines | Core integrity fell below 20% 1847 | -10/Mines | Destroyed by D-53 Grenadier with Mini Grenade Launcher Last Messages --------------- 01796_ Acquired Com. Matter Pod. 01797_ K-01 Serf collects debris. 01828_ ALERT: Infestation in the mines, dispatching Demolisher response squad. 01833_ C-30 ARC bursts open, deploying its payload. 01833_ D-53 Grenadier unfolds itself. 01833_ T-07 Excavator destroyed. 01835_ Lgt. Treads destroyed. 01835_ Lgt. Ion Engine destroyed. 01835_ Grenade Launcher destroyed. 01836_ The unstable cave ceiling collapses. 01837_ Lgt. Treads destroyed. 01837_ Assault Rifle destroyed. 01839_ The unstable cave ceiling collapses. 01841_ Grenade Launcher destroyed. 01845_ as-94141 destroyed. 01845_ Released Lrg. Storage Unit. 01845_ Released Signal Interpreter. 01845_ Released Assault Rifle. Map ----- +----------------------------------------------------+ | & #######????????????????????????????????? | | ## ##???????????????????????????????? | | ### #???????????????????????????????? | | #### #????? ?????????????????????????? | | #?# ##### ????????????????????????? | | ##?##### ????????????????????????? | | #??????## ????????????????????????? | | ????????# ### ?????????????????????????? | | ????????# #???????????????????????????????? | | ????????## #???????????????????????????????? | | ???####### = ####????????????????????????????? | | ??# ! | #????????????????????????????? | | ??# ####### ==#??##????????????????????????? | | ??????????## ##k #### #####???????????????????? | | ???????###### ### ## #???????????????????? | | ??????## ######?# ## #???????????????????? | | ???#### #????## # #??#????????????????? | | ???# ##???# d #? #????????????????? | | ???# ! ##### # # #????????????????? | | ???# ! ! < d # #????????????????? | | ???# !! ### #????????????????? | | ???# ! ##?# # !=& #????????????????? | | ???# #?# # !!* a ##### ????????? | | ???## ##?# ## =![ ????????? | | ????## #??## ### ######???????????? | | ?????## #???####?## @a #???????????????? | | ??????# #????????## aa #???????????????? | | ??????## ????????## #???????????????? | | ???????##### #????????## #???????????????? | | ???????????? ##?????????# ##???????????????? | | ????????????##??????????# #### #????????????????? | | ????????????????????????## #??? #????????????????? | | ?????????????????????????? ????#????????????????? | | ??????????????????????????##?????????????????????? | | ?????????????????????????????????????????????????? | | ?????????????????????????????????????????????????? | | ?????????????????????????????????????????????????? | | ?????????????????????????????????????????????????? | | ?????????????????????????????????????????????????? | | ?????????????????????????????????????????????????? | | | | | | | | | | | | | | | | | | | | | +----------------------------------------------------+ Best States ------------- Heat Dissipation 25 Energy Generation 10 Energy Capacity 125 Matter Stores 300 Matter Capacity 300 Sight Range 16 Terrain Scan Density 10 Evasion (%) 40 Recoil Reduction 2 Item Schematics ----------------- None Robot Schematics ------------------ None Fabricated ------------ Nothing Alien Tech Used ----------------- None Achievements -------------- None Challenges ------------ None Game ------ Seed NeutronSlugTriangulator Manual? 0 Play Time 00:14:31 Cumulative 10.8 hours Start 2024.04.26 @ 10:55:37 End 2024.04.26 @ 11:10:01 Sessions 1 Manual Loads 0 Difficulty Rogue Special Mode None Game No. 5 Rogue 4 Adventurer 1 Explorer 0 Win Type - Total 0 Types 0/0/0/0/0/0/0/0/0 Lore% 12 Gallery% 15 Achievement% 15 Wizard Run 0 Options --------- Layout 1 ASCII 0 Keyboard 0 Movement Mouse Keybinds 0 Fullscreen 1 Font 36/Smallcaps Map View 50x40 Zoom Use 0% Tactical HUD 1 Map Filters NONE Filters NONE Steam 0 RUN: 047f85ba-7198-4f15-84fb-825251d9db0e